[Event "Polish Youth B18 Championship 2023"]
[Site "Jastrzebia Gora"]
[Date "2023.03.16"]
[Round "6.11"]
[White "Czernek, Tymon"]
[Black "Smetek, Michal"]
[Result "1-0"]
[ECO "B12"]
[WhiteElo "2314"]
[BlackElo "1787"]
[Annotator "TA"]
[PlyCount "72"]
[EventDate "2023.03.11"]
[EventType "swiss"]
[EventCountry "POL"]
[SourceTitle "playchess.com"]
[Source "ChessBase"]
[SourceQuality "1"]
[TimeControl "40/5400+30:1800+30"]

{[%evp 9,72,8,-8,5,-2,-2,0,8,14,2,21,11,12,10,9,6,8,-8,43,41,49,31,32,31,124,113,93,125,132,131,130,53,117,111,198,197,200,199,189,184,187,197,222,208,433,443,430,360,622,642,641,616,747,721,1466,1335,12847,29951,5716,3804,29981,29982,29982,29983,29983]} 1. e4 {[%emt 0:00:08]} c6 {[%emt 0:00:11]} 2. d4 {[%emt 0:00:07]} d5 {[%emt 0:00:03]} 3. f3 {[%emt 0:00:11]} e6 {[%emt 0:00:27]} 4. Nc3 {[%emt 0:00:12]} Bb4 {[%emt 0:01:07]} 5. Bd2 {[%emt 0:00:07]} Ne7 6. Bd3 {[%emt 0:00:07] B12: Caro-Kann: Advance Variation.} Nd7 {[%emt 0:02:47] [#]} 7. Nce2 $146 {[%emt 0:01:09]} ({Predecessor:} 7. a3 Ba5 8. f4 dxe4 9. Nxe4 Bxd2+ 10. Qxd2 O-O 11. Nf3 b6 12. O-O Qc7 13. Rad1 {½-½ Sidletskyi,I (2152)-Dragnev,V (2556) EU-ch Rapid Katowice 2022 (7)}) 7... Bxd2+ {[%emt 0:00:46]} 8. Qxd2 {[%emt 0:00:03] The position is equal.} a5 {[%emt 0:05:09]} 9. e5 {[%emt 0:03:52]} b6 {[%emt 0:08:29]} 10. f4 {[%emt 0:00:59]} Ba6 {[%emt 0:01:43]} 11. Bxa6 {[%emt 0:00:06]} Rxa6 {[%emt 0:00:03]} 12. Nf3 {[%emt 0:00:35]} b5 {[%emt 0:03:36]} 13. g4 {[%emt 0:02:36]} h5 {[%emt 0:01:56]} (13... c5 $11) 14. gxh5 $1 $14 {[%emt 0:01:36]} Rxh5 {[%emt 0:00:18]} 15. Ng3 {[%emt 0:00:18]} Rh8 {[%emt 0:00:29]} 16. O-O-O {[%emt 0:01:21][%cal Of4f5]} Qb6 {[%emt 0:18:37] [#]} (16... c5 $14) 17. f5 $1 $16 {[%emt 0:05:26][%mdl 512]} exf5 {[%emt 0:06:39]} (17... c5 18. fxe6) 18. Qf4 {[%emt 0:00:36]} g6 {[%emt 0:03:58] [#]} 19. h4 $1 {[%emt 0:01:10][%cal Bh2h4,Bh4h5][%mdl 32]} Nf8 {[%emt 0:01:06]} 20. Ng5 {[%emt 0:01:44]} ({White should try} 20. h5 $16) 20... c5 {[%emt 0:07:16]} (20... Qc7 $1 $14) 21. h5 {[%emt 0:03:36] White has more active pieces.} Ne6 {[%emt 0:03:55]} (21... cxd4 $16 {is a better defense.} 22. hxg6 {[%mdl 64] Discovered Attack} Nfxg6 23. Rxh8+ (23. Qxd4 $2 Rxh1 24. Nxh1 Qxd4 $19) 23... Kd7) 22. Nxe6 $18 {[%emt 0:01:16]} (22. dxc5 Nxf4 23. cxb6 Nxh5 $15) 22... Qxe6 {[%emt 0:00:14]} (22... fxe6 $2 23. hxg6 Rxh1 24. Rxh1 cxd4 25. g7 $18) 23. hxg6 {[%emt 0:03:06]} (23. dxc5 g5 24. Qxg5 Qh6) 23... Rxh1 {[%emt 0:00:34]} 24. gxf7+ {[%emt 0:00:08]} (24. Rxh1 $6 Qxg6 25. e6 (25. dxc5 Qg4 $16) 25... Rxe6 $16) 24... Qxf7 {[%emt 0:00:24]} 25. Rxh1 {[%emt 0:00:42]} Rg6 {[%emt 0:09:33]} 26. Nh5 {[%emt 0:01:26] Threatens to win with Nf6+.} ({Much less strong is} 26. dxc5 Qg7) 26... Kd7 $2 {[%emt 0:01:05]} (26... Kf8 27. dxc5 Qh7) 27. Qd2 {[%emt 0:04:10]} (27. dxc5 Kc8 28. Nf6 Qg7 $18) (27. Nf6+ Kc6 28. dxc5 a4 $18) 27... b4 {[%emt 0:03:49]} 28. Nf4 {[%emt 0:00:30]} ({Weaker is} 28. dxc5 Kc7 29. Nf4 Rg4 $18) 28... c4 $2 {[%emt 0:04:58]} (28... Rc6 29. e6+ Rxe6 30. Nxe6 Qxe6 31. dxc5 Qc6) 29. Nxg6 {[%emt 0:00:22]} Qxg6 {[%emt 0:02:53]} 30. Qh6 {[%emt 0:03:33]} Qxh6+ {[%emt 0:04:35]} 31. Rxh6 {[%emt 0:00:01][%mdl 4096] Endgame KR-KN} c3 32. bxc3 {[%emt 0:01:52]} bxc3 {[%emt 0:00:15]} 33. Kd1 {[%emt 0:00:31]} Kc7 {[%emt 0:00:55]} 34. Ke2 {[%emt 0:01:23] Intending Rh7 and mate.} Nc6 {[%emt 0:00:09] [#]} 35. Rxc6+ $1 {[%emt 0:00:31][%mdl 512]} Kxc6 {[%emt 0:00:08]} 36. Ke3 {[%emt 0:00:02]} Kd7 {[%emt 0:01:15] Weighted Error Value: White=0.03 (flawless) /Black=0.76} 1-0

[Event "Polish Youth B18 Championship 2023"]
[Site "Jastrzebia Gora"]
[Date "2023.03.16"]
[Round "6.12"]
[White "Wilk, Igor"]
[Black "Taranowicz, Michal"]
[Result "0-1"]
[ECO "A40"]
[WhiteElo "2058"]
[BlackElo "1900"]
[Annotator "TA"]
[PlyCount "78"]
[EventDate "2023.03.11"]
[EventType "swiss"]
[EventCountry "POL"]
[SourceTitle "playchess.com"]
[Source "ChessBase"]
[SourceQuality "1"]
[TimeControl "40/5400+30:1800+30"]

{[%evp 20,78,21,0,12,28,22,0,12,0,-4,-16,-15,-22,-16,-51,-43,-35,0,0,0,0,0,0,0,0,0,0,-2,-8,0,0,0,0,0,12,13,0,0,0,0,-123,-90,-1112,-1066,-778,-284,-406,-329,-491,-646,-655,-656,-665,-332,-29986,-29987,-29987,-29988,-29988,-29989]} 1. d4 {[%emt 0:00:05]} e6 {[%emt 0:02:41]} 2. c4 {[%emt 0:00:22]} c5 {[%emt 0:00:04]} 3. Nf3 {[%emt 0:00:12]} Nf6 {[%emt 0:00:05]} 4. g3 {[%emt 0:00:08]} cxd4 {[%emt 0:00:06]} 5. Nxd4 {[%emt 0:00:11]} d5 {[%emt 0:00:03]} 6. Bg2 {[%emt 0:02:39]} e5 {[%emt 0:00:20]} 7. Nf3 {[%emt 0:00:25]} d4 {[%emt 0:00:11]} 8. O-O {[%emt 0:00:38]} Nc6 {[%emt 0:00:03]} 9. e3 {[%emt 0:01:44]} Be7 {[%emt 0:00:07]} 10. exd4 {[%emt 0:01:52]} exd4 {[%emt 0:00:05]} 11. Bf4 {[%emt 0:04:11]} Be6 {[%emt 0:00:06] E01: Catalan: Early deviations.} 12. Ne5 {[%emt 0:05:21]} Rc8 {[%emt 0:00:06]} 13. Nd2 {[%emt 0:06:20]} O-O {[%emt 0:01:12] The position is equal.} 14. Nxc6 {[%emt 0:06:52]} bxc6 {[%emt 0:00:33] [#]} 15. b3 $146 {[%emt 0:00:09]} ({Predecessor:} 15. Qa4 Qb6 16. b3 Bb4 17. a3 Bc3 18. Rab1 Bf5 19. Rbc1 Nh5 20. c5 Qxc5 21. Nf3 Nxf4 22. gxf4 {½-½ Socko,B (2636)-Tomczak,J (2584) POL-ch Lotto 79th 2022 (2.6)}) 15... Re8 {[%emt 0:23:32]} 16. Nf3 {[%emt 0:01:59]} c5 {[%emt 0:00:07]} 17. Ne1 {[%emt 0:02:01]} Qd7 {[%emt 0:07:39] Prevents Bb7} 18. Nd3 {[%emt 0:00:57]} Bh3 {[%emt 0:00:09]} 19. Re1 {[%emt 0:05:19]} Bf8 {[%emt 0:18:24]} 20. Be5 {[%emt 0:16:39]} Bxg2 {[%emt 0:03:19]} 21. Kxg2 {[%emt 0:00:10]} Rc6 {[%emt 0:01:48][%cal Bc8c6,Bc6f6,Bf6f3][%mdl 32]} 22. Bxf6 {[%emt 0:10:07]} Rxf6 {[%emt 0:00:09]} 23. Rxe8 {[%emt 0:00:13]} Qxe8 {[%emt 0:00:05]} 24. Qd2 {[%emt 0:01:18]} Qe4+ {[%emt 0:09:25]} 25. Kg1 {[%emt 0:00:09]} Rf3 {[%emt 0:00:17]} 26. Nf4 {[%emt 0:00:21] White wants to play Re1.} g5 {[%emt 0:00:24]} 27. Re1 {[%emt 0:06:33]} Qf5 {[%emt 0:01:55]} 28. Nd5 {[%emt 0:00:14]} Kg7 {[%emt 0:06:40]} 29. Kg2 {[%emt 0:04:31]} Bd6 {[%emt 0:02:19]} 30. Qe2 {[%emt 0:02:34]} (30. Re8 $11 {remains equal.}) 30... g4 $17 {[%emt 0:01:49] Black is more active.} 31. Rh1 $2 {[%emt 0:04:22][%mdl 8192] [#] This costs White the game.} (31. Kg1 $17) 31... d3 $1 $19 {[%emt 0:08:04]} (31... Qh5 $2 32. h3 Rf5 33. hxg4 $18 (33. Qxg4+ Qxg4 34. hxg4 Rg5 $16)) 32. Qd2 {[%emt 0:00:08]} Be5 $2 {[%emt 0:00:32]} (32... Rxf2+ 33. Qxf2 Qe4+ {[%mdl 64] Skewer, Deflection} 34. Kf1 Qxh1+ 35. Qg1 d2) 33. Rf1 {[%emt 0:01:09]} (33. Re1 $142 Bd4 34. Ne3) 33... Bd4 {[%emt 0:01:00] Threatens to win with ...h5.} ({Stronger than} 33... Qh5 34. Kg1 $15) 34. Nf4 {[%emt 0:00:15]} (34. b4 {was worth a try.} Qe4 35. Qg5+ Qg6 36. Qd2) 34... h5 {[%emt 0:02:52][%cal Oh5h4] Hoping for ...h4!} 35. h4 {[%emt 0:02:37]} Kh7 {[%emt 0:04:02]} 36. a3 {[%emt 0:07:19]} Be5 {[%emt 0:01:47]} (36... Qe4 $142 37. Kh2 Be5) 37. Rd1 $2 {[%emt 0:00:29] [#]} (37. Re1 $19) 37... Bxf4 {[%emt 0:00:29] Black mates.} 38. gxf4 {[%emt 0:00:05]} Qe4 {[%emt 0:00:13]} 39. Kg1 {[%emt 0:00:28]} Rh3 {[%emt 0:00:22] Artfully played by Taranowicz.   Weighted Error Value: White=0.61/Black=0.29 (precise)} ({Not} 39... Rxf4 40. Qxd3 Qxd3 41. Rxd3 $11) 0-1

[Event "Polish Youth B18 Championship 2023"]
[Site "Jastrzebia Gora"]
[Date "2023.03.16"]
[Round "6.13"]
[White "Paprocki, Antoni"]
[Black "Budzisz, Adrian"]
[Result "1-0"]
[ECO "C02"]
[WhiteElo "2255"]
[BlackElo "2069"]
[Annotator "TA"]
[PlyCount "81"]
[EventDate "2023.03.11"]
[EventType "swiss"]
[EventCountry "POL"]
[SourceTitle "playchess.com"]
[Source "ChessBase"]
[SourceQuality "1"]
[TimeControl "40/5400+30:1800+30"]

{[%evp 13,81,5,4,-14,0,-6,-8,0,0,-19,-8,-16,-25,-24,-10,-16,0,-11,-8,-22,-22,-27,-24,-27,-22,-41,-41,-39,-30,-43,-41,-39,-50,-69,0,0,0,0,108,95,125,113,203,191,193,179,158,132,144,103,112,111,175,181,146,179,152,136,137,129,727,695,778,764,755,752,872,854,1074,1107]} 1. e4 {[%emt 0:01:39]} e6 {[%emt 0:00:05]} 2. d4 {[%emt 0:00:05]} d5 {[%emt 0:00:04]} 3. e5 {[%emt 0:00:05]} c5 {[%emt 0:00:07]} 4. c3 {[%emt 0:00:04]} Nc6 {[%emt 0:00:09]} 5. Nf3 {[%emt 0:00:07]} Qb6 {[%emt 0:00:07]} 6. a3 {[%emt 0:00:08]} c4 {[%emt 0:00:11]} 7. Nbd2 {[%emt 0:00:07]} Na5 {[%emt 0:00:15]} 8. h4 {[%emt 0:00:05] Recently 8.Rb1 got a lot of attention. C02: French: Advance Variation.} Bd7 {[%emt 0:00:16]} 9. Rb1 {[%emt 0:00:17]} Qc7 {[%emt 0:00:36]} 10. g3 {[%emt 0:01:31] The position is equal.} Ne7 {[%emt 0:00:34]} 11. Bh3 {[%emt 0:00:16]} Nc8 {[%emt 0:00:47]} 12. Nf1 {[%emt 0:03:20]} Nb6 {[%emt 0:01:35] [#]} 13. N1h2 $146 {[%emt 0:00:49]} ({Predecessor:} 13. Bf4 Ba4 14. Qe2 Be7 15. Ne3 h6 16. g4 g6 17. Bg3 Nb3 18. O-O O-O-O 19. Nh2 {0-1 Montoliu Cervero,F (2393)-Amorim,D (2143) Titled Tuesday intern op 11th Aug blitz 2020 (10)}) 13... Nb3 {[%emt 0:04:02]} 14. Be3 {[%emt 0:05:01]} h6 {[%emt 0:02:21]} 15. h5 {[%emt 0:02:51]} O-O-O {[%emt 0:01:37][%cal Be8c8,Bc8b8,Bb8a8][%mdl 32]} 16. O-O {[%emt 0:00:43]} Be7 {[%emt 0:01:49]} 17. Qe2 {[%emt 0:10:36]} Rdg8 {[%emt 0:04:46]} 18. Kh1 {[%emt 0:02:18]} Qd8 {[%emt 0:07:27]} 19. Ne1 {[%emt 0:03:26]} Kb8 {[%emt 0:03:36]} 20. Ng2 {[%emt 0:00:37]} Nc8 {[%emt 0:01:51]} 21. Rbe1 {[%emt 0:18:26]} Ka8 {[%emt 0:02:45]} 22. f4 {[%emt 0:04:17][%cal Bf2f4,Bf4f5][%mdl 32]} g6 $1 {[%emt 0:03:22]} 23. hxg6 {[%emt 0:03:31]} Rxg6 {[%emt 0:00:27]} ({Black should play} 23... fxg6 $15 24. Rd1 Qf8) 24. f5 $11 {[%emt 0:01:04]} Rxg3 {[%emt 0:01:33]} 25. f6 {[%emt 0:01:01]} Bf8 {[%emt 0:06:46]} (25... Rxh3 $11 26. fxe7 Nxe7) 26. Qh5 $1 $16 {[%emt 0:04:16]} Qe8 {[%emt 0:02:57]} 27. Bg4 {[%emt 0:01:56]} Rxe3 {[%emt 0:05:08]} 28. Rxe3 {[%emt 0:02:26]} Nd2 {[%emt 0:00:08]} 29. Rfe1 {[%emt 0:06:06]} Ne4 {[%emt 0:03:16]} 30. Kg1 {[%emt 0:01:06] Inhibits Nf2.} Nb6 {[%emt 0:00:26]} 31. Nf1 {[%emt 0:04:20][%cal Bh2f1,Bf1d2,Bd2f3][%mdl 32]} Na4 {[%emt 0:02:02] [#]} 32. R1e2 {[%emt 0:00:41]} Bc6 {[%emt 0:03:14]} (32... Rg8 $16 {is a better defense.} 33. Bf3 Ng5) 33. Nd2 {[%emt 0:03:32]} Ng5 {[%emt 0:01:06]} 34. Nf3 {[%emt 0:01:47]} Ne4 {[%emt 0:01:16]} 35. Kh2 {[%emt 0:00:18][%cal Oe3e4] Repels Ng3} Rg8 {[%emt 0:01:04] [#]} 36. Nf4 $1 {[%emt 0:00:33][%cal Og4e6,Bg2f4,Bf4e6,Be6f8][%mdl 32] Strongly threatening Bxe6!} Qb8 $2 {[%emt 0:00:46][%mdl 8192] This move loses the game for Black.} (36... Bd7 $16 37. Rg2 a6) 37. Qxf7 $18 {[%emt 0:10:04] Active counter play! White is clearly winning.} Nxf6 {[%emt 0:05:58]} 38. Qxf6 {[%emt 0:01:09]} Rxg4 {[%emt 0:00:17]} 39. Nxe6 {[%emt 0:00:12]} ({Not} 39. Qxe6 Rxf4 40. Kg3 Re4 $11) 39... Bd7 {[%emt 0:01:23]} 40. Nxf8 {[%emt 0:00:00]} Qe8 {[%emt 0:00:00]} 41. Kh1 {[%emt 0:05:29] Weighted Error Value: White=0.07 (flawless) /Black=0.18 (very precise)} 1-0

[Event "Polish Youth B18 Championship 2023"]
[Site "Jastrzebia Gora"]
[Date "2023.03.16"]
[Round "6.14"]
[White "Dziendziel, Mateusz"]
[Black "Kozlowski, Franciszek"]
[Result "1-0"]
[ECO "B12"]
[WhiteElo "2084"]
[BlackElo "1829"]
[Annotator "TA"]
[PlyCount "73"]
[EventDate "2023.03.11"]
[EventType "swiss"]
[EventCountry "POL"]
[SourceTitle "playchess.com"]
[Source "ChessBase"]
[SourceQuality "1"]
[TimeControl "40/5400+30:1800+30"]

{[%evp 9,73,0,0,0,0,5,22,25,20,0,28,25,50,55,64,21,45,0,10,-63,-54,-57,-49,-62,4,0,19,-44,0,-56,25,-15,0,-83,0,-85,13,-3,85,35,75,19,147,158,230,212,308,316,343,322,314,304,389,386,416,368,531,401,566,473,474,456,760,734,1532,1505]} 1. e4 {[%emt 0:00:01]} c6 {[%emt 0:00:06]} 2. d4 d5 {[%emt 0:00:13]} 3. e5 {[%emt 0:00:41]} c5 {[%emt 0:00:07]} 4. dxc5 {[%emt 0:00:38]} e6 {[%emt 0:00:09]} 5. a3 {[%emt 0:00:17]} Bxc5 {[%emt 0:00:20]} 6. Qg4 {[%emt 0:00:04] B12: Caro-Kann: Advance Variation.} Ne7 {[%emt 0:00:07]} 7. Bd3 {[%emt 0:00:31]} Nbc6 {[%emt 0:00:25]} 8. Nf3 {[%emt 0:00:15] Hoping for b4. The position is equal.} Ng6 {[%emt 0:00:57]} 9. b4 {[%emt 0:07:24]} Bb6 {[%emt 0:00:08]} 10. Bb2 {[%emt 0:00:48]} Bc7 {[%emt 0:05:36]} 11. O-O {[%emt 0:09:25]} O-O {[%emt 0:09:22][%cal Rg6e5]} 12. Qh5 {[%emt 0:01:07]} Qe8 {[%emt 0:02:11] [#]} 13. b5 $146 {[%emt 0:20:40]} (13. Ng5 h6 14. Nf3 (14. Nxf7 $2 Nf4 $19) 14... Nf4 $15) ({Predecessor:} 13. Re1 Nce7 14. Nbd2 Bd7 15. Nd4 h6 16. g3 Bb6 17. N2f3 Rc8 18. Re2 a6 19. Rae1 {½-½ Rodriguez,M (2082)-Moreno Perez,T (2260) Vicente Lopez ProAm 100 Years op 2022 (5)}) 13... Nce7 {[%emt 0:09:57]} 14. Ng5 {[%emt 0:08:32]} ({Much worse is} 14. b6 Bxb6 15. Nc3 (15. Ng5 $2 h6 $17) 15... h6 $15) (14. a4 $11) 14... h6 $15 {[%emt 0:00:35] aiming for ...Nf4.} (14... Bxe5 $2 15. Qxh7#) 15. Nh3 {[%emt 0:11:58] Inhibits Nf4.} Bd7 {[%emt 0:19:01]} 16. a4 {[%emt 0:01:26]} Rc8 {[%emt 0:02:57]} (16... Qb8 $15 17. f4 a6) 17. Nd2 $11 {[%emt 0:02:06]} Ba5 {[%emt 0:07:35]} 18. Nb1 {[%emt 0:00:59]} (18. Qe2 $11) 18... Bc7 {[%emt 0:01:07][%cal Oa7a6]} 19. Ra3 {[%emt 0:01:38]} (19. Nd2 $11) 19... Nh8 {[%emt 0:06:24]} (19... Nf5 $15 20. Qe2 Bb6) 20. Qg4 {[%emt 0:13:15]} Nhg6 {[%emt 0:01:19]} 21. Re1 {[%emt 0:00:20]} (21. Qh5 $11) 21... f5 {[%emt 0:02:24]} (21... Ba5 $17 22. Re2 Bc7) 22. exf6 {[%emt 0:05:04]} (22. Qe2 $11 {keeps the balance.}) 22... gxf6 {[%emt 0:01:36]} ({Black should play} 22... e5 $17 23. Bxg6 Nxg6) 23. Qh5 {[%emt 0:04:25]} Kh7 {[%emt 0:00:49]} (23... Ba5 $2 24. Bxg6 Qxg6 25. Rg3 $18) (23... Qf7 $11) 24. Bc1 $36 {[%emt 0:01:13][%mdl 2048] Black is under pressure.} (24. c4 $16) 24... Ng8 {[%emt 0:00:09]} 25. Rc3 {[%emt 0:02:34]} (25. c4 $16) 25... e5 {[%emt 0:01:05] [#]} (25... Qf7 $11) 26. Nf4 $1 $16 {[%emt 0:00:56][%cal Rd3g6][%mdl 64] Pin. Dancing on a razor blade. White is much more active. The black rooks are badly placed.} e4 {[%emt 0:01:15]} (26... f5 $16) 27. Nxd5 $18 {[%emt 0:00:48]} Be5 {[%emt 0:11:47]} (27... Qe5 {was worth a try.} 28. Qxe5 Bxe5) 28. Rxc8 {[%emt 0:00:13]} (28. Bxe4 Bxc3 29. Nbxc3 f5 $11) ({Much less strong is} 28. Rxe4 f5) 28... Qxc8 {[%emt 0:00:17]} 29. Rxe4 {[%emt 0:02:14][%cal Oe4g4] Threatening mate with Rg4!} f5 {[%emt 0:00:26] Repels Rg4} 30. Re1 {[%emt 0:00:54][%cal Be4e1,Be1e5,Be5e6][%mdl 32]} Be6 {[%emt 0:01:16]} 31. c4 {[%emt 0:01:20]} Qd7 {[%emt 0:01:11]} 32. g3 {[%emt 0:00:47]} Rf7 {[%emt 0:01:57]} (32... Bg7 $142 33. Nd2 Bxd5 34. cxd5 Qxd5) 33. Bc2 {[%emt 0:00:53]} Rg7 {[%emt 0:00:47]} (33... Qc8 $142 34. Bd3 Bd4) 34. Bxh6 {[%emt 0:01:41] White is clearly winning.} Nxh6 {[%emt 0:01:03]} 35. Rxe5 {[%emt 0:00:07][%mdl 64] [#] White wants to mate with Nf6+. Remove Defender, Back Rank} Bxd5 {[%emt 0:00:34]} (35... Qf7 $142) 36. Bxf5 {[%emt 0:00:51]} Be6 {[%emt 0:00:49]} 37. Rxe6 {[%emt 0:00:15] Ingenious play by Dziendziel!   Weighted Error Value: White=0.33/Black=0.55} 1-0

[Event "Polish Youth B18 Championship 2023"]
[Site "Jastrzebia Gora"]
[Date "2023.03.16"]
[Round "6.15"]
[White "Syrkiewicz, Michal"]
[Black "Kotowicz, Kamil"]
[Result "1/2-1/2"]
[ECO "B31"]
[WhiteElo "2000"]
[BlackElo "1828"]
[Annotator "TA"]
[PlyCount "89"]
[EventDate "2023.03.11"]
[EventType "swiss"]
[EventCountry "POL"]
[SourceTitle "playchess.com"]
[Source "ChessBase"]
[SourceQuality "1"]
[TimeControl "40/5400+30:1800+30"]

{[%evp 19,89,14,14,16,16,12,35,-5,-8,-10,0,0,0,-13,0,0,90,85,93,34,78,6,31,30,22,36,43,21,46,14,59,62,52,55,46,31,70,0,-10,-10,0,0,0,0,0,0,0,0,0,0,0,0,0,0,0,0,0,0,0,0,0,0,0,0,0,0,2,2,2,2,10,0]} 1. e4 {[%emt 0:00:03]} c5 {[%emt 0:01:38]} 2. Nf3 {[%emt 0:00:10]} Nc6 {[%emt 0:00:10]} 3. Bb5 {[%emt 0:00:15]} g6 {[%emt 0:00:12]} 4. Bxc6 {[%emt 0:00:18]} dxc6 {[%emt 0:00:25]} 5. d3 {[%emt 0:00:22]} Bg7 {[%emt 0:00:10]} 6. h3 {[%emt 0:00:06]} Nf6 {[%emt 0:00:10][%cal Bg8f6,Bf6e8,Be8c7,Bc7e6,Be6f4][%mdl 32]} 7. Nc3 {[%emt 0:00:19]} O-O {[%emt 0:00:18]} 8. O-O {[%emt 0:01:03]} Ne8 {[%emt 0:01:27]} 9. Be3 {[%emt 0:08:37]} b6 {[%emt 0:01:00]} 10. Qd2 {[%emt 0:06:14]} e5 {[%emt 0:04:49]} 11. Bh6 {[%emt 0:08:20] B31: Sicilian: 2...Nc6 3 Bb5 g6.} Qe7 {[%emt 0:01:47]} 12. Rae1 {[%emt 0:03:49]} Nc7 {[%emt 0:03:20] [#]} 13. Nd1 $146 {[%emt 0:08:53] White is slightly better.} ({Predecessor:} 13. Bxg7 Kxg7 14. Nh2 Ne6 15. Ne2 g5 16. Ng4 f6 17. Ne3 Nf4 18. Ng3 Kh8 19. Ngf5 {½-½ Escott,K (2065)-Walker,N (2115) BCF-chT4 0607 (4NCL) 2006 (3.1)}) 13... f6 {[%emt 0:02:42]} 14. Bxg7 {[%emt 0:06:17]} Kxg7 {[%emt 0:01:19]} 15. Nh2 {[%emt 0:02:42]} Ne6 {[%emt 0:02:40] Prevents f4} 16. Ne3 {[%emt 0:11:44]} Nf4 {[%emt 0:09:14]} 17. h4 {[%emt 0:05:28]} h5 {[%emt 0:08:18]} (17... Ne6 $11 {keeps the balance.}) 18. g3 $16 {[%emt 0:03:26]} Ne6 {[%emt 0:00:26]} 19. Kh1 {[%emt 0:03:29]} (19. f4 $16) 19... Kh7 {[%emt 0:22:38] [#]} 20. Ng2 {[%emt 0:06:48]} (20. f4 $1 $16) 20... Ng7 (20... Ba6 $5 {[%cal Rc5c4]}) 21. f4 {[%emt 0:04:43]} Bh3 {[%emt 0:02:44]} 22. Rf2 {[%emt 0:01:18]} Bxg2+ {[%emt 0:00:16]} 23. Kxg2 {[%emt 0:00:15]} Rad8 {[%emt 0:00:50]} 24. Qe2 {[%emt 0:03:21]} Rde8 {[%emt 0:03:03][%cal Oc5c4]} 25. f5 {[%emt 0:03:00]} gxf5 {[%emt 0:01:16]} 26. exf5 {[%emt 0:00:05]} Qf7 {[%emt 0:00:46]} 27. Kh3 {[%emt 0:01:42]} Rh8 {[%emt 0:03:16]} 28. g4 {[%emt 0:02:43]} ({White should try} 28. Nf1 $14) 28... hxg4+ $11 {[%emt 0:01:11] The position is equal.} (28... Qxa2 29. Rg1 c4 30. gxh5 cxd3 31. Qxd3 $18 (31. Qg4 Qf7 $18)) 29. Nxg4 {[%emt 0:01:14]} Kg8 {[%emt 0:03:57]} 30. Qe4 {[%emt 0:00:34]} Rc8 {[%emt 0:00:51]} 31. Rg2 {[%emt 0:03:25]} Kf8 {[%emt 0:01:23]} 32. Nxe5 {[%emt 0:01:07]} fxe5 {[%emt 0:00:20]} 33. Qxe5 {[%emt 0:00:06] [#] Strongly threatening Qd6+.} Qxf5+ {[%emt 0:00:53]} 34. Qxf5+ {[%emt 0:00:08]} Nxf5 {[%emt 0:00:04][%csl Gf5][%cal Rh8h4]} 35. Rf2 $1 {[%emt 0:00:10]} Rxh4+ {[%emt 0:00:41]} 36. Kg2 {[%emt 0:00:07]} Rg4+ {[%emt 0:00:20]} 37. Kf1 $1 {[%emt 0:00:53]} Rg5 {[%emt 0:01:05]} 38. Re5 {[%emt 0:00:06]} Kf7 {[%emt 0:00:52] And now ...Kf6 would win.} 39. Rfxf5+ {[%emt 0:00:09]} Rxf5+ {[%emt 0:00:07]} 40. Rxf5+ {[%emt 0:00:00] KR-KR} Ke6 {[%emt 0:00:00]} 41. Rh5 {[%emt 0:00:17]} Re8 {[%emt 0:02:53]} 42. Ke2 {[%emt 0:00:08]} Kd6+ {[%emt 0:00:05]} 43. Kd2 {[%emt 0:00:02]} Re5 {[%emt 0:00:45]} 44. Rh7 {[%emt 0:00:03]} Re7 {[%emt 0:00:05]} 45. Rh5 {[%emt 0:00:04] Weighted Error Value: White=0.14 (very precise) /Black=0.11 (very precise)} 1/2-1/2